[Event "FIDE WYCC Open U14 2023"]
[Site "Montesilvano"]
[Date "2023.11.14"]
[Round "2.15"]
[White "Akhmedov, David"]
[Black "Schuricht, Emil Frederick"]
[Result "1-0"]
[ECO "A11"]
[WhiteElo "2240"]
[BlackElo "1998"]
[Annotator "ChessBase"]
[PlyCount "101"]
[EventDate "2023.11.13"]
[EventType "swiss"]
[EventCountry "ITA"]
[SourceTitle "playchess.com"]
[Source "ChessBase"]
[SourceQuality "1"]
[TimeControl "40/5400+30:1800+30"]

1. c4 {[%emt 0:00:05]} c6 {[%emt 0:00:22]} 2. Nf3 {[%emt 0:00:03]} d5 {[%emt 0:00:07]} 3. e3 {[%emt 0:00:04]} Nf6 {[%emt 0:00:23]} 4. Nc3 e6 {[%emt 0:02:43]} 5. b3 {[%emt 0:00:55]} Nbd7 {[%emt 0:00:47]} 6. Bb2 {[%emt 0:00:06]} Bd6 {[%emt 0:01:17]} 7. Qc2 {[%emt 0:00:06]} b6 {[%emt 0:02:19]} 8. cxd5 {[%emt 0:19:15]} exd5 {[%emt 0:05:43]} 9. Nd4 {[%emt 0:14:32]} Bb7 {[%emt 0:14:08]} 10. Be2 {[%emt 0:01:04]} c5 {[%emt 0:14:55]} 11. Nf5 {[%emt 0:05:38]} Bf8 {[%emt 0:00:47]} 12. Nb5 {[%emt 0:04:00]} Qb8 {[%emt 0:02:17]} 13. O-O {[%emt 0:01:50]} g6 {[%emt 0:02:35]} 14. Ng3 {[%emt 0:10:20]} Bg7 {[%emt 0:02:31]} 15. d4 {[%emt 0:02:59]} O-O {[%emt 0:02:20]} 16. dxc5 {[%emt 0:00:33]} bxc5 {[%emt 0:02:51]} 17. Rfd1 {[%emt 0:00:36]} a6 {[%emt 0:03:02]} 18. Nc3 {[%emt 0:00:01]} Qa7 {[%emt 0:00:56]} 19. Rac1 {[%emt 0:01:45]} Rac8 {[%emt 0:01:25]} 20. Qb1 {[%emt 0:02:17]} d4 {[%emt 0:04:54]} 21. exd4 {[%emt 0:03:11]} cxd4 {[%emt 0:00:02]} 22. Na4 {[%emt 0:00:30]} Nd5 {[%emt 0:02:38]} 23. Bf1 {[%emt 0:13:12]} Bc6 {[%emt 0:10:16]} 24. Rc4 {[%emt 0:13:19]} Bxa4 {[%emt 0:02:24]} 25. Rxa4 {[%emt 0:00:01]} Nc3 {[%emt 0:01:51]} 26. Bxc3 {[%emt 0:00:05]} dxc3 {[%emt 0:00:27]} 27. Rxa6 {[%emt 0:00:32]} Qxa6 {[%emt 0:01:57]} 28. Bxa6 {[%emt 0:00:01]} c2 {[%emt 0:00:08]} 29. Qc1 {[%emt 0:00:01]} Bh6 {[%emt 0:07:05]} 30. Bxc8 {[%emt 0:00:56]} Rxc8 {[%emt 0:00:22]} 31. Nf1 {[%emt 0:00:29]} Bxc1 {[%emt 0:06:37]} 32. Rxc1 {[%emt 0:00:00]} Ne5 {[%emt 0:00:09]} 33. Ne3 {[%emt 0:00:06]} Rd8 {[%emt 0:00:46]} 34. Rxc2 {[%emt 0:02:02]} f5 {[%emt 0:00:43]} 35. Kf1 {[%emt 0:02:39]} f4 {[%emt 0:00:16]} 36. Nc4 {[%emt 0:00:33]} f3 {[%emt 0:00:19]} 37. Ne3 {[%emt 0:03:19]} Kf7 {[%emt 0:01:23]} 38. gxf3 {[%emt 0:00:36]} Nxf3 {[%emt 0:00:02]} 39. Rc7+ {[%emt 0:00:14]} Kf6 {[%emt 0:00:07]} 40. Rxh7 {[%emt 0:00:00]} Rd2 {[%emt 0:00:00]} 41. Ra7 {[%emt 0:02:49]} Kg5 {[%emt 0:01:12]} 42. Kg2 {[%emt 0:01:14]} Ne1+ {[%emt 0:00:17]} 43. Kg3 {[%emt 0:00:42]} Nd3 {[%emt 0:00:33]} 44. f4+ {[%emt 0:04:31]} Kf6 {[%emt 0:00:21]} 45. Rd7 {[%emt 0:00:42]} g5 {[%emt 0:01:06]} 46. fxg5+ {[%emt 0:03:24]} Kxg5 {[%emt 0:00:21]} 47. Rd6 {[%emt 0:00:22]} Kh5 {[%emt 0:02:13]} 48. Ng4 {[%emt 0:01:51]} Kg5 {[%emt 0:00:26]} 49. Rf6 {[%emt 0:02:18]} Kh5 {[%emt 0:00:41]} 50. h4 {[%emt 0:00:22]} Rxa2 {[%emt 0:00:16]} 51. Rh6# {[%emt 0:00:04]} 1-0

[Event "FIDE WYCC Open U14 2023"]
[Site "Montesilvano"]
[Date "2023.11.14"]
[Round "2.16"]
[White "Poljan, Max"]
[Black "Ljepic, Andrej"]
[Result "0-1"]
[ECO "B34"]
[WhiteElo "1953"]
[BlackElo "2236"]
[Annotator "ChessBase"]
[PlyCount "94"]
[EventDate "2023.11.13"]
[EventType "swiss"]
[EventCountry "ITA"]
[SourceTitle "playchess.com"]
[Source "ChessBase"]
[SourceQuality "1"]
[TimeControl "40/5400+30:1800+30"]

1. e4 {[%emt 0:00:02]} c5 {[%emt 0:00:04]} 2. Nf3 {[%emt 0:00:06]} Nc6 {[%emt 0:00:27]} 3. d4 {[%emt 0:00:06]} cxd4 {[%emt 0:00:05]} 4. Nxd4 {[%emt 0:00:05]} g6 {[%emt 0:00:16]} 5. Nc3 {[%emt 0:00:06]} Bg7 {[%emt 0:00:07]} 6. Be3 {[%emt 0:00:19]} Nf6 {[%emt 0:00:09]} 7. Nxc6 {[%emt 0:00:06]} dxc6 {[%emt 0:01:43]} 8. Qxd8+ {[%emt 0:00:08]} Kxd8 {[%emt 0:00:04]} 9. O-O-O+ {[%emt 0:00:27]} Nd7 {[%emt 0:00:08]} 10. Bc4 {[%emt 0:03:20]} Ke8 {[%emt 0:00:05]} 11. h3 {[%emt 0:01:07]} Nb6 {[%emt 0:05:24]} 12. Bb3 {[%emt 0:04:48]} Be6 {[%emt 0:00:49]} 13. Bxe6 {[%emt 0:20:29]} fxe6 {[%emt 0:00:05]} 14. Kb1 {[%emt 0:01:07]} Nc4 {[%emt 0:06:30]} 15. Bc1 {[%emt 0:00:50]} Bxc3 {[%emt 0:02:39]} 16. bxc3 {[%emt 0:00:04]} e5 {[%emt 0:01:09]} 17. Rd3 {[%emt 0:05:41]} Kf7 {[%emt 0:05:26]} 18. Rhd1 {[%emt 0:03:18]} Ke6 {[%emt 0:01:29]} 19. Bg5 {[%emt 0:01:44]} h6 {[%emt 0:03:55]} 20. Bh4 {[%emt 0:00:43]} g5 {[%emt 0:00:43]} 21. Bg3 {[%emt 0:00:03]} a5 {[%emt 0:04:57]} 22. h4 {[%emt 0:10:43]} a4 {[%emt 0:10:21]} 23. f3 {[%emt 0:05:06]} a3 {[%emt 0:03:16]} 24. Ka1 {[%emt 0:00:34]} Nb2 {[%emt 0:00:50]} 25. Rb1 {[%emt 0:01:10]} Nxd3 {[%emt 0:00:12]} 26. cxd3 {[%emt 0:00:02]} Rad8 {[%emt 0:03:55]} 27. Rd1 {[%emt 0:00:31]} Rhg8 {[%emt 0:00:39]} 28. h5 {[%emt 0:00:44]} c5 {[%emt 0:00:56]} 29. Bf2 {[%emt 0:00:36]} b6 {[%emt 0:00:08]} 30. Be3 {[%emt 0:00:35]} Ra8 {[%emt 0:01:46]} 31. Kb1 {[%emt 0:04:17]} Kd6 {[%emt 0:03:19]} 32. Kc2 {[%emt 0:01:12]} Kc6 {[%emt 0:01:25]} 33. Rb1 {[%emt 0:01:47]} b5 {[%emt 0:00:57]} 34. d4 {[%emt 0:02:12]} cxd4 {[%emt 0:01:32]} 35. cxd4 {[%emt 0:00:39]} exd4 {[%emt 0:00:25]} 36. Bxd4 {[%emt 0:00:03]} Ra4 {[%emt 0:00:16]} 37. Bc3 {[%emt 0:00:39]} Rc4 {[%emt 0:02:10]} 38. Rb4 {[%emt 0:00:56]} Rc5 {[%emt 0:01:33]} 39. Kb3 {[%emt 0:01:03]} e5 {[%emt 0:02:08]} 40. Be1 {[%emt 0:00:00]} Rd8 {[%emt 0:00:00]} 41. Kxa3 {[%emt 0:01:50]} Rd1 {[%emt 0:06:05]} 42. Bg3 {[%emt 0:00:46]} Rd2 {[%emt 0:03:15]} 43. Rb2 {[%emt 0:01:16]} Rc3+ {[%emt 0:01:06]} 44. Rb3 {[%emt 0:00:01]} Rcc2 {[%emt 0:03:30]} 45. Bxe5 {[%emt 0:01:26]} Kc5 {[%emt 0:00:38]} 46. Rb1 {[%emt 0:03:45]} Rd3+ {[%emt 0:00:34]} 47. Rb3 {[%emt 0:00:10]} b4+ {[%emt 0:00:11]} 0-1

[Event "FIDE WYCC Open U14 2023"]
[Site "Montesilvano"]
[Date "2023.11.14"]
[Round "2.17"]
[White "Nurgaliyev, Sauat"]
[Black "Juhanak, Daniel"]
[Result "1-0"]
[ECO "B72"]
[WhiteElo "2235"]
[BlackElo "1984"]
[Annotator "ChessBase"]
[PlyCount "107"]
[EventDate "2023.11.13"]
[EventType "swiss"]
[EventCountry "ITA"]
[SourceTitle "playchess.com"]
[Source "ChessBase"]
[SourceQuality "1"]
[TimeControl "40/5400+30:1800+30"]

1. e4 {[%emt 0:00:04]} c5 {[%emt 0:00:14]} 2. Nf3 {[%emt 0:00:06]} d6 {[%emt 0:00:15]} 3. d4 {[%emt 0:00:06]} cxd4 {[%emt 0:00:13]} 4. Nxd4 {[%emt 0:00:03]} Nf6 {[%emt 0:00:13]} 5. Nc3 {[%emt 0:00:16]} g6 {[%emt 0:00:40]} 6. Be3 {[%emt 0:01:39]} Nc6 {[%emt 0:01:21]} 7. f3 {[%emt 0:01:25]} h5 {[%emt 0:01:04]} 8. Bc4 {[%emt 0:02:15]} Bg7 {[%emt 0:03:12]} 9. Bb3 {[%emt 0:06:53]} Na5 {[%emt 0:01:41]} 10. O-O {[%emt 0:01:11]} Bd7 {[%emt 0:06:22]} 11. Qd2 {[%emt 0:02:41]} Rc8 {[%emt 0:07:19]} 12. Rad1 {[%emt 0:01:34]} Nc4 {[%emt 0:05:29]} 13. Bxc4 {[%emt 0:00:15]} Rxc4 {[%emt 0:00:38]} 14. Nb3 {[%emt 0:01:28]} b6 {[%emt 0:04:06]} 15. Rfe1 {[%emt 0:07:09]} O-O {[%emt 0:03:17]} 16. e5 {[%emt 0:01:45]} Ne8 {[%emt 0:24:22]} 17. Bg5 {[%emt 0:05:42]} Be6 {[%emt 0:04:07]} 18. Nd5 {[%emt 0:03:06]} Bxd5 {[%emt 0:04:02]} 19. exd6 {[%emt 0:01:25]} Qxd6 {[%emt 0:10:35]} 20. Bxe7 {[%emt 0:00:51]} Qc6 {[%emt 0:02:14]} 21. Bxf8 {[%emt 0:28:26]} Bxf3 {[%emt 0:01:58]} 22. Bxg7 {[%emt 0:03:18]} Bxd1 {[%emt 0:05:41]} 23. Bc3 {[%emt 0:03:17]} Bg4 {[%emt 0:02:54]} 24. Qh6 {[%emt 0:07:34]} Rxc3 {[%emt 0:01:11]} 25. Nd4 {[%emt 0:01:35]} Qd7 {[%emt 0:02:34]} 26. bxc3 {[%emt 0:00:05]} Ng7 {[%emt 0:00:27]} 27. Qe3 {[%emt 0:01:39]} Be6 {[%emt 0:00:28]} 28. Qe5 {[%emt 0:01:58]} Bxa2 {[%emt 0:01:24]} 29. Qe7 {[%emt 0:04:41]} Qg4 {[%emt 0:00:44]} 30. Qxa7 {[%emt 0:00:45]} Bd5 {[%emt 0:00:37]} 31. Qb8+ {[%emt 0:00:05]} Kh7 {[%emt 0:00:15]} 32. Qg3 {[%emt 0:00:03]} Qd7 {[%emt 0:01:09]} 33. h3 {[%emt 0:02:53]} Ne6 {[%emt 0:00:45]} 34. Qe5 {[%emt 0:03:04]} Qd8 {[%emt 0:01:38]} 35. Rd1 {[%emt 0:00:49]} Qa8 {[%emt 0:01:45]} 36. Nf5 {[%emt 0:02:42]} Be4 {[%emt 0:01:07]} 37. Ne3 {[%emt 0:00:38]} Nc5 {[%emt 0:01:54]} 38. Nd5 {[%emt 0:00:17]} Bxd5 {[%emt 0:00:35]} 39. Qxd5 {[%emt 0:00:02]} Qe8 {[%emt 0:00:39]} 40. Rf1 {[%emt 0:00:00]} Kg7 {[%emt 0:00:00]} 41. Qd4+ {[%emt 0:03:46]} Kg8 {[%emt 0:05:11]} 42. Qf6 {[%emt 0:03:43]} Ne6 {[%emt 0:03:25]} 43. Qf2 {[%emt 0:03:32]} Nc5 {[%emt 0:01:58]} 44. Qd4 {[%emt 0:00:49]} Qe7 {[%emt 0:02:12]} 45. Qf6 {[%emt 0:02:56]} Qc7 {[%emt 0:00:46]} 46. Ra1 {[%emt 0:01:10]} Qb7 {[%emt 0:01:25]} 47. Qd8+ {[%emt 0:00:14]} Kh7 {[%emt 0:01:23]} 48. Ra8 {[%emt 0:00:18]} Kh6 {[%emt 0:00:46]} 49. Qh8+ {[%emt 0:02:20]} Kg5 {[%emt 0:00:55]} 50. Qe5+ {[%emt 0:00:05]} f5 {[%emt 0:00:13]} 51. h4+ {[%emt 0:00:35]} Kg4 {[%emt 0:01:25]} 52. Kh2 {[%emt 0:00:10]} Ne4 {[%emt 0:00:53]} 53. Ra4 {[%emt 0:00:09]} Kxh4 {[%emt 0:01:00]} 54. Qf4# {[%emt 0:00:09]} 1-0

[Event "FIDE WYCC Open U14 2023"]
[Site "Montesilvano"]
[Date "2023.11.14"]
[Round "2.18"]
[White "Terlouw, Wouter"]
[Black "Brattgjerd, Isak Vinh"]
[Result "0-1"]
[ECO "D02"]
[WhiteElo "1932"]
[BlackElo "2235"]
[Annotator "ChessBase"]
[PlyCount "136"]
[EventDate "2023.11.13"]
[EventType "swiss"]
[EventCountry "ITA"]
[SourceTitle "playchess.com"]
[Source "ChessBase"]
[SourceQuality "1"]
[TimeControl "40/5400+30:1800+30"]

1. d4 {[%emt 0:00:04]} d5 {[%emt 0:00:03]} 2. Nf3 {[%emt 0:01:02]} Nf6 {[%emt 0:00:05]} 3. g3 {[%emt 0:00:08]} h6 {[%emt 0:02:31]} 4. Bg2 {[%emt 0:02:05]} Bf5 {[%emt 0:00:07]} 5. c4 {[%emt 0:00:36]} e6 {[%emt 0:02:12]} 6. Nc3 {[%emt 0:01:43]} Nc6 {[%emt 0:02:19]} 7. O-O {[%emt 0:05:27]} Be7 {[%emt 0:00:54]} 8. Bf4 {[%emt 0:03:30]} O-O {[%emt 0:04:08]} 9. Ne5 {[%emt 0:03:17]} Bb4 {[%emt 0:09:42]} 10. Nxc6 {[%emt 0:04:35]} bxc6 {[%emt 0:00:01]} 11. Qa4 {[%emt 0:01:13]} Bxc3 {[%emt 0:01:23]} 12. bxc3 {[%emt 0:00:03]} Qd7 {[%emt 0:02:53]} 13. f3 {[%emt 0:04:38]} Bg6 {[%emt 0:07:09]} 14. Rfe1 {[%emt 0:03:12]} Rfb8 {[%emt 0:12:38]} 15. e4 {[%emt 0:04:33]} Rb6 {[%emt 0:01:41]} 16. c5 {[%emt 0:16:29]} Rb7 {[%emt 0:02:37]} 17. e5 {[%emt 0:03:38]} Nh7 {[%emt 0:02:25]} 18. Bf1 {[%emt 0:03:01]} a5 {[%emt 0:13:00]} 19. h4 {[%emt 0:04:03]} Nf8 {[%emt 0:00:36]} 20. Rad1 {[%emt 0:04:20]} h5 {[%emt 0:01:09]} 21. Rd2 {[%emt 0:07:15]} Bf5 {[%emt 0:02:55]} 22. Ree2 {[%emt 0:03:23]} Ng6 {[%emt 0:00:22]} 23. Bg5 {[%emt 0:00:42]} Rba7 {[%emt 0:07:53]} 24. Rb2 {[%emt 0:01:14]} Rf8 {[%emt 0:00:09]} 25. Rb3 {[%emt 0:07:41]} f6 {[%emt 0:00:17]} 26. exf6 {[%emt 0:00:17]} gxf6 {[%emt 0:00:01]} 27. Bh6 {[%emt 0:00:08]} Re8 {[%emt 0:00:37]} 28. Reb2 {[%emt 0:01:02]} Kh7 {[%emt 0:02:19]} 29. Bd2 {[%emt 0:00:30]} e5 {[%emt 0:01:45]} 30. Rb7 {[%emt 0:00:34]} Rxb7 {[%emt 0:02:01]} 31. Rxb7 {[%emt 0:00:02]} Ra8 {[%emt 0:02:09]} 32. Qd1 {[%emt 0:01:04]} Qg7 {[%emt 0:02:09]} 33. f4 {[%emt 0:01:52]} Bg4 {[%emt 0:00:09]} 34. Be2 {[%emt 0:00:12]} Bc8 {[%emt 0:00:05]} 35. Rb1 {[%emt 0:00:36]} Nxh4 {[%emt 0:02:45]} 36. Bd3+ {[%emt 0:01:03]} Kg8 {[%emt 0:00:56]} 37. Kf2 {[%emt 0:02:00]} Nf5 {[%emt 0:02:12]} 38. Bxf5 {[%emt 0:00:51]} Bxf5 {[%emt 0:00:01]} 39. Rb7 {[%emt 0:00:28]} Bc8 {[%emt 0:01:10]} 40. Rb1 {[%emt 0:00:00]} Bf5 {[%emt 0:00:00]} 41. Rb7 {[%emt 0:01:32]} Bc8 {[%emt 0:01:59]} 42. Rb1 {[%emt 0:00:56]} Bg4 {[%emt 0:18:59]} 43. Qe1 {[%emt 0:05:46]} exd4 {[%emt 0:01:11]} 44. cxd4 {[%emt 0:00:15]} Qg6 {[%emt 0:01:25]} 45. Rb3 {[%emt 0:01:41]} Kf8 {[%emt 0:03:46]} 46. Qb1 {[%emt 0:07:51]} Qf7 {[%emt 0:04:48]} 47. Rb8+ {[%emt 0:02:10]} Rxb8 {[%emt 0:00:00]} 48. Qxb8+ {[%emt 0:00:03]} Kg7 {[%emt 0:03:10]} 49. Qb3 {[%emt 0:00:39]} a4 {[%emt 0:00:25]} 50. Qe3 {[%emt 0:00:37]} Kf8 {[%emt 0:01:29]} 51. a3 {[%emt 0:03:34]} Qh7 {[%emt 0:00:07]} 52. Be1 {[%emt 0:08:02]} Qc2+ {[%emt 0:00:09]} 53. Bd2 {[%emt 0:00:24]} Kf7 {[%emt 0:00:05]} 54. Kg2 {[%emt 0:00:21]} Bf5 {[%emt 0:00:20]} 55. Qe2 {[%emt 0:01:51]} Bg4 {[%emt 0:00:47]} 56. Qe3 {[%emt 0:00:20]} Qd1 {[%emt 0:00:09]} 57. Qe1 {[%emt 0:03:41]} Qf3+ {[%emt 0:00:07]} 58. Kh2 {[%emt 0:00:12]} Qxa3 {[%emt 0:00:19]} 59. Qb1 {[%emt 0:01:44]} Kg7 {[%emt 0:01:10]} 60. Qe1 {[%emt 0:01:42]} Kf8 {[%emt 0:01:16]} 61. f5 {[%emt 0:01:44]} Bxf5 {[%emt 0:01:00]} 62. Qf1 {[%emt 0:03:07]} Qb2 {[%emt 0:06:57]} 63. Qxf5 {[%emt 0:01:35]} Qxd2+ {[%emt 0:00:01]} 64. Kh3 {[%emt 0:00:08]} Qxd4 {[%emt 0:00:39]} 65. Qc8+ {[%emt 0:00:12]} Kg7 {[%emt 0:00:07]} 66. Qxc7+ {[%emt 0:00:18]} Kh6 {[%emt 0:00:38]} 67. Qxc6 {[%emt 0:00:17]} a3 {[%emt 0:00:40]} 68. Qa6 {[%emt 0:01:18]} Qa1 {[%emt 0:01:22]} 0-1

[Event "FIDE WYCC Open U14 2023"]
[Site "Montesilvano"]
[Date "2023.11.14"]
[Round "2.19"]
[White "Mamedov, Edgar"]
[Black "Bochniak, Franciszek"]
[Result "1-0"]
[ECO "A50"]
[WhiteElo "2234"]
[BlackElo "1954"]
[Annotator "ChessBase"]
[PlyCount "129"]
[EventDate "2023.11.13"]
[EventType "swiss"]
[EventCountry "ITA"]
[SourceTitle "playchess.com"]
[Source "ChessBase"]
[SourceQuality "1"]
[TimeControl "40/5400+30:1800+30"]

1. d4 {[%emt 0:00:06]} Nf6 {[%emt 0:00:06]} 2. c4 {[%emt 0:00:10]} b6 {[%emt 0:00:06]} 3. Nc3 {[%emt 0:07:21]} Bb7 {[%emt 0:00:13]} 4. d5 {[%emt 0:01:05]} e6 {[%emt 0:00:10]} 5. a3 {[%emt 0:00:05]} Bd6 {[%emt 0:00:06]} 6. Nf3 {[%emt 0:00:05]} O-O {[%emt 0:00:12]} 7. e4 {[%emt 0:02:20]} exd5 {[%emt 0:00:36]} 8. exd5 {[%emt 0:00:10]} c6 {[%emt 0:04:36]} 9. Be2 {[%emt 0:02:53]} h6 {[%emt 0:04:17]} 10. O-O {[%emt 0:00:19]} Na6 {[%emt 0:00:15]} 11. Nd4 {[%emt 0:14:24]} Be5 {[%emt 0:18:20]} 12. Bf3 {[%emt 0:05:56]} Rc8 {[%emt 0:03:54]} 13. Be3 {[%emt 0:02:28]} cxd5 {[%emt 0:15:48]} 14. cxd5 {[%emt 0:01:22]} d6 {[%emt 0:00:58]} 15. Rc1 {[%emt 0:04:47]} Nc5 {[%emt 0:01:11]} 16. b4 {[%emt 0:21:30]} Bxd4 {[%emt 0:04:26]} 17. Bxd4 {[%emt 0:00:05]} Ncd7 {[%emt 0:00:07]} 18. Qb3 {[%emt 0:08:31]} a6 {[%emt 0:05:17]} 19. Rfe1 {[%emt 0:07:27]} Re8 {[%emt 0:05:04]} 20. a4 {[%emt 0:00:08]} Ne5 {[%emt 0:02:18]} 21. Be2 {[%emt 0:00:11]} Ng6 {[%emt 0:02:19]} 22. Bf1 {[%emt 0:04:30]} Nf4 {[%emt 0:02:49]} 23. Rxe8+ {[%emt 0:00:58]} Nxe8 {[%emt 0:01:01]} 24. Be3 {[%emt 0:02:29]} Ng6 {[%emt 0:02:46]} 25. b5 {[%emt 0:10:24]} a5 {[%emt 0:01:46]} 26. Qd1 {[%emt 0:00:54]} Nf6 {[%emt 0:01:41]} 27. Qd4 {[%emt 0:00:17]} Nd7 {[%emt 0:01:04]} 28. Rd1 {[%emt 0:01:07]} Ne7 {[%emt 0:07:18]} 29. Bd3 {[%emt 0:01:14]} Rc5 {[%emt 0:02:53]} 30. Qe4 {[%emt 0:01:34]} Nf6 {[%emt 0:03:00]} 31. Qd4 {[%emt 0:00:04]} Nexd5 {[%emt 0:03:44]} 32. Nxd5 {[%emt 0:00:04]} Nxd5 {[%emt 0:01:30]} 33. Bd2 {[%emt 0:00:34]} Nf6 {[%emt 0:03:02]} 34. Rc1 {[%emt 0:00:55]} Qc7 {[%emt 0:00:47]} 35. Rxc5 {[%emt 0:00:27]} dxc5 {[%emt 0:00:12]} 36. Qf4 {[%emt 0:00:50]} Qd8 {[%emt 0:00:22]} 37. Bc2 {[%emt 0:00:31]} Bd5 {[%emt 0:03:37]} 38. f3 {[%emt 0:00:18]} Be6 {[%emt 0:00:20]} 39. Be1 {[%emt 0:00:15]} Nd5 {[%emt 0:00:21]} 40. Qe4 {[%emt 0:00:00]} Qf6 {[%emt 0:00:00]} 41. Bg3 {[%emt 0:06:33]} Qa1+ {[%emt 0:02:01]} 42. Kf2 {[%emt 0:00:46]} Qc1 {[%emt 0:07:53]} 43. Be5 {[%emt 0:05:47]} g6 {[%emt 0:05:18]} 44. h4 {[%emt 0:05:50]} h5 {[%emt 0:07:34]} 45. Kg3 {[%emt 0:08:42]} Kh7 {[%emt 0:04:34]} 46. Bb3 {[%emt 0:01:28]} f5 {[%emt 0:03:38]} 47. Qe2 {[%emt 0:01:17]} f4+ {[%emt 0:02:26]} 48. Kf2 {[%emt 0:04:23]} Qh1 {[%emt 0:01:26]} 49. Bxd5 {[%emt 0:00:04]} Qxh4+ {[%emt 0:00:08]} 50. Kg1 {[%emt 0:00:05]} Bxd5 {[%emt 0:00:05]} 51. Qd2 {[%emt 0:00:55]} Qd8 {[%emt 0:01:30]} 52. Qxf4 {[%emt 0:00:10]} Qe7 {[%emt 0:00:32]} 53. Bc7 {[%emt 0:01:30]} Qe6 {[%emt 0:00:44]} 54. Bd8 {[%emt 0:00:32]} Qd7 {[%emt 0:00:31]} 55. Bxb6 {[%emt 0:00:19]} c4 {[%emt 0:00:10]} 56. Qe5 {[%emt 0:00:39]} Be6 {[%emt 0:00:52]} 57. Bxa5 {[%emt 0:00:33]} Kh6 {[%emt 0:00:31]} 58. Bc3 {[%emt 0:00:26]} Bf5 {[%emt 0:00:27]} 59. a5 {[%emt 0:00:25]} Qd1+ {[%emt 0:00:34]} 60. Kh2 {[%emt 0:00:07]} Qc2 {[%emt 0:00:31]} 61. Qf4+ {[%emt 0:00:36]} Kh7 {[%emt 0:00:02]} 62. Qc7+ {[%emt 0:00:12]} Kh6 {[%emt 0:00:01]} 63. Bg7+ {[%emt 0:00:08]} Kg5 {[%emt 0:00:00]} 64. Qe7+ {[%emt 0:00:08]} Kf4 {[%emt 0:00:06]} 65. Bh6+ 1-0

[Event "FIDE WYCC Open U14 2023"]
[Site "Montesilvano"]
[Date "2023.11.14"]
[Round "2.20"]
[White "Escudero Ribo, Eloi"]
[Black "Gkavardinas, Antonios"]
[Result "1-0"]
[ECO "D31"]
[WhiteElo "1929"]
[BlackElo "2230"]
[Annotator "ChessBase"]
[PlyCount "75"]
[EventDate "2023.11.13"]
[EventType "swiss"]
[EventCountry "ITA"]
[SourceTitle "playchess.com"]
[Source "ChessBase"]
[SourceQuality "1"]
[TimeControl "40/5400+30:1800+30"]

1. d4 {[%emt 0:00:06]} d5 {[%emt 0:00:07]} 2. c4 {[%emt 0:00:13]} e6 {[%emt 0:00:05]} 3. Nc3 {[%emt 0:00:09]} Be7 {[%emt 0:00:04]} 4. cxd5 {[%emt 0:00:25]} exd5 {[%emt 0:00:09]} 5. Bf4 {[%emt 0:00:12]} c6 {[%emt 0:00:13]} 6. e3 {[%emt 0:00:08]} Bf5 {[%emt 0:00:17]} 7. g4 {[%emt 0:00:09]} Be6 {[%emt 0:00:18]} 8. h4 {[%emt 0:00:08]} Nd7 {[%emt 0:00:26]} 9. g5 {[%emt 0:01:13]} h6 {[%emt 0:01:40]} 10. g6 {[%emt 0:00:10]} Ngf6 {[%emt 0:02:18]} 11. gxf7+ {[%emt 0:02:02]} Bxf7 {[%emt 0:00:39]} 12. Nf3 {[%emt 0:07:44]} O-O {[%emt 0:07:17]} 13. Rg1 {[%emt 0:08:53]} Kh8 {[%emt 0:01:01]} 14. Qc2 {[%emt 0:09:53]} Nh5 {[%emt 0:06:13]} 15. Ne5 {[%emt 0:02:54]} Nxf4 {[%emt 0:05:29]} 16. exf4 {[%emt 0:02:53]} Nxe5 {[%emt 0:02:15]} 17. dxe5 {[%emt 0:05:32]} Bxh4 {[%emt 0:02:20]} 18. O-O-O {[%emt 0:02:59]} Bh5 {[%emt 0:03:42]} 19. Rd4 {[%emt 0:13:02]} Qe7 {[%emt 0:09:19]} 20. f5 {[%emt 0:03:41]} Bg5+ {[%emt 0:13:02]} 21. f4 {[%emt 0:04:58]} Bh4 {[%emt 0:07:28]} 22. Rh1 {[%emt 0:04:37]} Bf3 {[%emt 0:10:47]} 23. Bg2 {[%emt 0:00:54]} Qc5 {[%emt 0:05:32]} 24. Rd3 {[%emt 0:13:12]} Bxg2 {[%emt 0:02:19]} 25. Qxg2 {[%emt 0:00:02]} Qc4 {[%emt 0:09:22]} 26. Rf3 {[%emt 0:04:37]} d4 {[%emt 0:07:10]} 27. Rxh4 {[%emt 0:00:29]} Rxf5 {[%emt 0:00:31]} 28. Rfh3 {[%emt 0:01:02]} dxc3 {[%emt 0:02:39]} 29. Rxh6+ {[%emt 0:03:25]} Kg8 {[%emt 0:00:06]} 30. Rh8+ {[%emt 0:00:39]} Kf7 {[%emt 0:00:01]} 31. Rxa8 {[%emt 0:00:16]} cxb2+ {[%emt 0:00:41]} 32. Kxb2 {[%emt 0:00:09]} Qd4+ {[%emt 0:00:23]} 33. Kc2 {[%emt 0:01:16]} Rxf4 {[%emt 0:00:35]} 34. e6+ {[%emt 0:01:10]} Kxe6 {[%emt 0:02:11]} 35. Qg6+ {[%emt 0:00:59]} Ke7 {[%emt 0:00:39]} 36. Re8+ {[%emt 0:00:59]} Kd7 {[%emt 0:00:01]} 37. Rd3 {[%emt 0:00:42]} Rf2+ {[%emt 0:00:07]} 38. Kd1 1-0

[Event "FIDE WYCC Open U14 2023"]
[Site "Montesilvano"]
[Date "2023.11.14"]
[Round "2.21"]
[White "Rustamov, Rustam"]
[Black "George Samir, David"]
[Result "1-0"]
[ECO "C80"]
[WhiteElo "2229"]
[BlackElo "1942"]
[Annotator "ChessBase"]
[PlyCount "58"]
[EventDate "2023.11.13"]
[EventType "swiss"]
[EventCountry "ITA"]
[SourceTitle "playchess.com"]
[Source "ChessBase"]
[SourceQuality "1"]
[TimeControl "40/5400+30:1800+30"]

1. e4 {[%emt 0:00:02]} e5 {[%emt 0:00:01]} 2. Nf3 {[%emt 0:00:11]} Nc6 {[%emt 0:00:01]} 3. Bb5 {[%emt 0:00:06]} a6 {[%emt 0:00:05]} 4. Ba4 {[%emt 0:00:03]} Nf6 {[%emt 0:00:04]} 5. O-O {[%emt 0:00:04]} Nxe4 {[%emt 0:00:19]} 6. Re1 {[%emt 0:00:55]} Nc5 {[%emt 0:00:37]} 7. Bxc6 {[%emt 0:00:28]} dxc6 {[%emt 0:00:07]} 8. Nxe5 {[%emt 0:00:04]} Be7 {[%emt 0:00:08]} 9. d4 {[%emt 0:00:04]} Ne6 {[%emt 0:00:04]} 10. Be3 {[%emt 0:00:24]} O-O {[%emt 0:00:08]} 11. c4 {[%emt 0:00:34]} f6 {[%emt 0:01:39]} 12. Nf3 {[%emt 0:00:18]} f5 {[%emt 0:01:31]} 13. Nc3 {[%emt 0:06:22]} f4 {[%emt 0:02:21]} 14. Bd2 {[%emt 0:00:22]} Bf6 {[%emt 0:00:10]} 15. Ne2 {[%emt 0:05:18]} Ng5 {[%emt 0:14:30]} 16. Nxg5 {[%emt 0:13:18]} Bxg5 {[%emt 0:00:09]} 17. Qb3 {[%emt 0:00:44]} f3 {[%emt 0:04:53]} 18. Bxg5 {[%emt 0:00:28]} Qxg5 {[%emt 0:00:01]} 19. Ng3 {[%emt 0:00:04]} fxg2 {[%emt 0:00:46]} 20. c5+ {[%emt 0:01:31]} Kh8 {[%emt 0:01:50]} 21. Re5 {[%emt 0:02:55]} Qd2 {[%emt 0:01:16]} 22. Qe3 {[%emt 0:02:27]} Qxb2 {[%emt 0:00:09]} 23. Re1 {[%emt 0:00:08]} Bg4 {[%emt 0:01:38]} 24. Re4 {[%emt 0:06:41]} Bf3 {[%emt 0:13:21]} 25. Re7 {[%emt 0:01:01]} Bd5 {[%emt 0:04:37]} 26. Nh5 {[%emt 0:00:45]} Rf3 {[%emt 0:00:05]} 27. Re8+ Rf8 28. Re7 Rf3 29. Re8+ Rxe8 1-0